bitfinex/quotes_BTCUSD_20260221
["timestamp","ask_amount","ask_price","bid_price","bid_amount"]
[1771696556851,0.07301646,68478.0,68470.0,0.07330052]
[1771696557293,0.06801646,68478.0,68470.0,0.07330052]
[1771696557699,0.34091748,68477.0,68470.0,0.07330052]
[1771696558299,0.26789982,68477.0,68470.0,0.07330052]
[1771696559032,0.26789982,68477.0,68471.0,0.07302359]
[1771696562970,0.02459406,68477.0,68471.0,0.07302359]
[1771696563856,0.06801646,68478.0,68471.0,0.07302359]
[1771696566677,0.06801646,68478.0,68471.0,0.07324359]
[1771696573763,0.06821646,68478.0,68471.0,0.07324359]
[1771696577454,0.16395987,68480.0,68473.0,0.07302131]
[1771696577709,0.34091295,68481.0,68473.0,0.07302131]
[1771696578982,0.0002,68483.0,68478.0,0.07301594]
[1771696579186,0.0002,68487.0,68478.0,0.07301594]
[1771696579617,0.07320781,68486.0,68478.0,0.07301594]
[1771696580252,0.07320781,68486.0,68479.0,0.07301507]
[1771696581246,0.07320781,68486.0,68478.0,0.07301594]
[1771696583274,0.07320781,68486.0,68479.0,0.07301497]
[1771696585224,0.14609374,68485.0,68479.0,0.07301497]
[1771696585453,0.07320781,68486.0,68479.0,0.07301497]
[1771696585858,0.0002,68487.0,68476.0,0.02394225]
[1771696586265,0.0002,68487.0,68478.0,0.02394225]
[1771696586498,0.0002,68487.0,68482.0,0.07301147]
[1771696587518,0.0002,68486.0,68482.0,0.07301147]
[1771696588005,0.0012,68486.0,68482.0,0.07301147]
[1771696588245,0.0002,68486.0,68482.0,0.07301147]
[1771696590019,0.0002,68486.0,68481.0,0.07301272]
[1771696590885,0.0002,68486.0,68480.0,0.07301376]
[1771696592072,0.0002,68486.0,68481.0,0.07301254]
[1771696592921,0.0002,68486.0,68480.0,0.07301376]
[1771696600880,0.0002,68486.0,68480.0,0.07323376]
[1771696602346,0.0002,68486.0,68481.0,0.07301285]
[1771696606598,0.0002,68486.0,68480.0,0.07323369]
[1771696617289,0.0002,68486.0,68480.0,0.00022]
[1771696617472,0.0002,68486.0,68481.0,0.07301295]
[1771696620361,0.00016,68490.0,68482.0,0.07301112]
[1771696620563,0.00016,68490.0,68483.0,0.0730101]
[1771696620790,0.07316348,68490.0,68483.0,0.0730101]
[1771696621740,0.07316348,68490.0,68482.0,0.07301159]
[1771696622024,0.07316348,68490.0,68483.0,0.0001821]
[1771696624253,0.07300451,68489.0,68483.0,0.0001821]
[1771696632988,0.0730055,68488.0,68483.0,0.0001821]
[1771696637235,0.07320451,68489.0,68483.0,0.0001821]
[1771696639271,0.07300573,68488.0,68483.0,0.0001821]
[1771696639849,0.07300573,68488.0,68483.0,0.0004021]
[1771696640254,0.07320451,68489.0,68483.0,0.0004021]
[1771696640458,0.07300556,68488.0,68483.0,0.0004021]
[1771696642338,0.07320451,68489.0,68483.0,0.0004021]
[1771696645495,0.0002,68489.0,68483.0,0.07341286]
[1771696645922,0.0002,68489.0,68484.0,0.07300886]
[1771696646543,0.0002,68489.0,68483.0,0.07341275]
[1771696647639,0.0002,68489.0,68483.0,0.0004021]
[1771696653484,0.07320452,68489.0,68483.0,0.0004021]
[1771696657276,0.07300639,68488.0,68483.0,0.0004021]
[1771696658534,0.30134646,68488.0,68483.0,0.0004021]
[1771696661833,0.30134646,68488.0,68472.0,0.00022]
[1771696661834,0.22834007,68488.0,68472.0,0.00022]
[1771696662033,0.25331945,68479.0,68472.0,0.07324247]
[1771696662611,0.02497938,68479.0,68473.0,0.07336645]
[1771696662829,0.07301299,68481.0,68473.0,0.07336645]
[1771696665335,0.0728545,68481.0,68473.0,0.07328645]
[1771696667697,0.0728545,68481.0,68474.0,0.07302038]
[1771696668916,0.0728545,68481.0,68473.0,0.07328655]
[1771696672946,0.0728545,68481.0,68474.0,0.0730204]
[1771696673136,0.06064409,68481.0,68474.0,0.0730204]
[1771696679717,0.06084409,68481.0,68474.0,0.0730204]
[1771696680335,0.06076409,68481.0,68474.0,0.0730204]
[1771696681157,0.0002,68481.0,68470.0,0.0002766]
[1771696681349,0.30135846,68476.0,68470.0,0.0002766]
[1771696681756,0.07301839,68476.0,68470.0,0.0002766]
[1771696682081,0.02497938,68478.0,68470.0,0.07330126]
[1771696683516,0.02497938,68478.0,68471.0,0.07302275]
[1771696687254,0.09799585,68478.0,68471.0,0.07302275]
[1771696688050,0.09799585,68478.0,68470.0,0.07330126]
[1771696688475,0.09799585,68478.0,68471.0,0.07302328]
[1771696691183,0.02497938,68478.0,68470.0,0.0002766]
[1771696691612,0.07301835,68476.0,68470.0,0.0002766]
[1771696692186,0.07301936,68475.0,68470.0,0.0002766]
[1771696692392,0.32450886,68470.0,68463.0,0.00022]
[1771696693275,0.32450886,68470.0,68463.0,0.07325201]
[1771696694625,0.25148342,68470.0,68463.0,0.07325201]
[1771696700262,0.02483788,68470.0,68463.0,0.07325201]
[1771696700896,0.02483788,68470.0,68464.0,0.07303098]
[1771696705351,0.02483788,68470.0,68464.0,0.07325098]
[1771696705564,0.02503788,68470.0,68464.0,0.07325098]
[1771696712126,0.02503788,68470.0,68464.0,0.00022]
[1771696712504,0.07322494,68470.0,68464.0,0.00022]
[1771696712705,0.02503788,68470.0,68464.0,0.00013]
[1771696719112,0.09806303,68470.0,68464.0,0.00013]
[1771696719564,0.09806303,68470.0,68463.0,0.00022]
[1771696719565,0.0002,68470.0,68463.0,0.00022]
[1771696719768,0.0002,68470.0,68459.0,0.0003453]
[1771696719769,0.23396714,68467.0,68459.0,0.0003453]
[1771696719977,0.00036,68470.0,68459.0,0.0003453]
[1771696719978,0.09632627,68465.0,68459.0,0.0003453]
[1771696720438,0.07303217,68463.0,68457.0,0.00022]
[1771696721819,0.23396714,68463.0,68456.0,0.00022]
[1771696722029,0.07304281,68454.0,68450.0,0.00038]
[1771696722242,0.16394912,68467.0,68450.0,0.00038]
[1771696722243,0.02329596,68457.0,68450.0,0.00038]
[1771696722448,0.09633531,68457.0,68450.0,0.00038]
[1771696722862,0.07303985,68456.0,68450.0,0.00038]
[1771696723118,0.07304434,68452.0,68450.0,0.00038]
[1771696723287,0.02329596,68453.0,68449.0,0.00022]
[1771696723484,0.02320596,68453.0,68449.0,0.00022]
[1771696723711,0.09624956,68453.0,68449.0,0.0003718]
[1771696724473,0.30700982,68454.0,68447.0,0.0001382]
[1771696724474,0.09633987,68452.0,68450.0,0.00022]
[1771696724681,0.09633987,68452.0,68447.0,0.0001382]
[1771696726312,0.02329596,68452.0,68447.0,0.0001382]
[1771696727471,0.09634,68452.0,68447.0,0.0001382]
[1771696727769,0.02329596,68451.0,68447.0,0.0001382]
[1771696728117,0.02329596,68450.0,68444.0,0.07305242]
[1771696728319,0.02329596,68450.0,68443.0,0.07327321]
[1771696728541,0.02329596,68450.0,68443.0,0.07327326]
[1771696730240,0.02329596,68450.0,68444.0,0.07305211]
[1771696730642,0.0233413,68450.0,68444.0,0.07305231]
[1771696731461,0.0233413,68450.0,68444.0,0.07327231]
[1771696732256,0.0233413,68450.0,68444.0,0.00022]
[1771696733465,0.0233413,68450.0,68444.0,0.07327203]
[1771696733779,4.534e-05,68450.0,68444.0,0.07327203]
[1771696734140,4.534e-05,68450.0,68445.0,0.07305094]
[1771696736014,4.534e-05,68450.0,68447.0,0.07304853]
[1771696736359,0.07303709,68459.0,68445.0,0.02480584]
[1771696736562,0.07303709,68459.0,68450.0,0.07304566]
[1771696736563,0.07303847,68458.0,68450.0,0.07304566]
[1771696737463,0.07303847,68458.0,68451.0,0.07304492]
[1771696737770,0.07303847,68458.0,68450.0,0.07304566]
[1771696739186,0.07303847,68458.0,68451.0,0.0730448]
[1771696739384,4.54e-05,68459.0,68453.0,0.07304254]
[1771696740376,0.07308199,68459.0,68451.0,0.0730448]
[1771696741933,4.54e-05,68459.0,68451.0,0.0730448]
[1771696742167,0.07303923,68457.0,68446.0,0.07304953]
[1771696742389,0.07304159,68455.0,68447.0,0.07304837]
[1771696742731,0.07304159,68455.0,68446.0,0.07304953]
[1771696742732,0.07304159,68455.0,68448.0,0.07304779]
[1771696746022,0.07324159,68455.0,68448.0,0.07304779]
[1771696752010,4.54e-05,68459.0,68447.0,0.29219528]
[1771696752125,0.07303763,68458.0,68447.0,0.29219528]
[1771696752565,0.21915257,68458.0,68449.0,0.0730469]
[1771696752739,0.21915257,68458.0,68450.0,0.07304522]
[1771696753561,0.07303855,68457.0,68450.0,0.07304522]
[1771696755765,0.21915349,68457.0,68450.0,0.07304522]
[1771696755977,0.07303855,68457.0,68450.0,0.07304522]
[1771696756130,0.21914851,68457.0,68450.0,0.07304522]
[1771696757008,0.21914851,68457.0,68449.0,0.07304672]
[1771696757782,0.07303855,68457.0,68449.0,0.07304672]
[1771696757991,0.21914621,68457.0,68449.0,0.07304672]
[1771696758490,0.07304054,68456.0,68448.0,0.07304775]
[1771696760631,0.07304054,68456.0,68449.0,0.07304699]
[1771696762614,0.21917664,68456.0,68449.0,0.07304699]
[1771696766063,0.00479084,68455.0,68449.0,0.07304699]
[1771696766307,0.15099873,68455.0,68449.0,0.07304699]
[1771696769443,0.00479084,68455.0,68449.0,1e-08]
[1771696769591,0.00479084,68455.0,68449.0,0.05837927]
[1771696770100,0.00479084,68455.0,68448.0,0.07326778]
[1771696773367,0.00479084,68455.0,68448.0,0.00022]
[1771696773604,0.00479084,68455.0,68451.0,0.0730443]
[1771696774804,0.00579084,68455.0,68451.0,0.0730443]
[1771696775005,0.00479084,68455.0,68451.0,0.0730443]
[1771696776525,0.00479084,68455.0,68450.0,0.07304561]
[1771696778859,0.00479084,68455.0,68448.0,0.00022]
[1771696779041,0.07304192,68454.0,68449.0,0.00022]
[1771696780932,0.07304106,68455.0,68449.0,0.00022]
[1771696781683,0.07304182,68454.0,68449.0,0.00022]
[1771696782092,0.23665725,68453.0,68449.0,0.00022]
[1771696783252,0.10149889,68454.0,68449.0,0.00022]
[1771696785063,0.00479084,68454.0,68449.0,0.00022]
[1771696787714,0.00479084,68454.0,68445.0,0.00022]
[1771696787715,0.07304482,68452.0,68445.0,0.00022]
[1771696788036,0.30970207,68452.0,68445.0,0.07327135]
[1771696789038,0.23665725,68452.0,68447.0,0.07304873]
[1771696789398,0.09690787,68455.0,68447.0,0.07304873]
[1771696790132,0.0730418,68454.0,68447.0,0.07304873]
[1771696790485,0.07783264,68454.0,68447.0,0.07304873]
[1771696791184,0.07783264,68454.0,68446.0,0.07304954]
[1771696791606,0.07783264,68454.0,68447.0,0.07304868]
[1771696794030,0.00479084,68454.0,68447.0,0.07304868]
[1771696794157,0.00479084,68454.0,68448.0,0.07304806]
[1771696794356,4.54e-05,68459.0,68445.0,0.00022]
[1771696794555,0.1462068,68461.0,68456.0,0.07303877]
[1771696794775,0.07303136,68464.0,68456.0,0.07303877]
[1771696794977,0.14631846,68463.0,68456.0,0.07303877]
[1771696795217,0.07315625,68463.0,68456.0,0.07303877]
[1771696795593,0.07315625,68463.0,68456.0,0.0657122]
[1771696797944,0.0001239,68463.0,68456.0,0.0657122]
[1771696798088,0.0001239,68463.0,68457.0,0.07303848]
[1771696798291,0.0001239,68463.0,68456.0,0.07303927]
[1771696798732,0.17528568,68488.0,68460.0,0.00016]
[1771696798953,0.0001893,68492.0,68472.0,0.02412335]
[1771696799157,0.0001893,68492.0,68488.0,0.02412335]
[1771696799386,0.0001893,68492.0,68481.0,0.02412335]
[1771696799591,0.17544,68499.0,68482.0,0.02412335]
[1771696799803,0.23665725,68498.0,68482.0,0.29204439]
[1771696799992,0.17544,68499.0,68490.0,0.02412335]
[1771696800283,0.17544,68499.0,68480.0,0.00016]
[1771696800284,0.07300698,68487.0,68480.0,0.00016]
[1771696800471,0.02366623,68483.0,68473.0,0.46752387]
[1771696800674,0.23665725,68480.0,68473.0,0.46752387]
[1771696800888,0.26032348,68480.0,68473.0,0.46752387]
[1771696801095,0.23665725,68480.0,68477.0,0.07301628]
[1771696801305,0.26032348,68480.0,68478.0,0.07301532]
[1771696801520,0.26032348,68480.0,68474.0,0.07302041]
[1771696801728,0.26032348,68480.0,68468.0,0.29210724]
[1771696802088,0.23665725,68480.0,68472.0,0.07302157]
[1771696802306,0.23665725,68478.0,68468.0,0.29210724]
[1771696802502,0.02366623,68475.0,68468.0,0.29210724]
[1771696802656,0.26032348,68474.0,68473.0,0.07302148]
[1771696803024,0.29202829,68487.0,68470.0,0.07302468]
[1771696803025,0.00016,68490.0,68479.0,0.07301491]
[1771696803186,0.07301382,68481.0,68470.0,0.16417352]
[1771696803390,0.07301382,68481.0,68472.0,0.07302249]
[1771696804172,0.0730141,68480.0,68471.0,0.09714684]
[1771696804984,0.07301076,68484.0,68474.0,0.07301969]
[1771696805195,0.07301376,68481.0,68472.0,0.09714489]
[1771696805585,0.07301376,68481.0,68472.0,0.09714553]
[1771696805789,0.07301376,68481.0,68472.0,0.02412335]
[1771696806282,3e-06,68481.0,68472.0,0.02412335]
[1771696806486,0.00016,68490.0,68479.0,0.07301454]
[1771696806688,0.07300682,68487.0,68480.0,0.16401352]
[1771696806838,0.0002,68481.0,68479.0,0.07301496]
[1771696807054,0.0002,68481.0,68480.0,0.02412335]
[1771696810680,0.0002,68481.0,68477.0,0.02420045]
[1771696813017,0.0002,68481.0,68477.0,0.09721764]
[1771696813423,0.0002,68481.0,68477.0,0.02420045]
[1771696813977,0.0002,68481.0,68477.0,0.02442045]
[1771696815572,0.0002,68481.0,68471.0,0.41243648]
[1771696815773,0.07301416,68480.0,68473.0,0.07302129]
[1771696815973,0.0002,68481.0,68472.0,0.07302043]
[1771696816199,0.0002,68481.0,68473.0,0.07302148]
[1771696816393,0.07321331,68481.0,68474.0,0.07302036]
[1771696816993,0.0002,68481.0,68475.0,0.07301932]
[1771696819605,0.0002,68481.0,68474.0,0.07302009]
[1771696820978,0.0002,68481.0,68475.0,0.00022]
[1771696821956,0.07321297,68481.0,68475.0,0.00022]
[1771696823128,0.0002,68481.0,68475.0,0.00022]
[1771696823964,0.07321308,68481.0,68475.0,0.00022]
[1771696824161,0.0002,68481.0,68475.0,0.00022]
[1771696825166,0.0012,68481.0,68475.0,0.00022]
[1771696825514,0.29202035,68489.0,68476.0,0.02420045]
[1771696825665,0.07300953,68485.0,68477.0,0.07301715]
[1771696826347,0.0730102,68484.0,68477.0,0.07301715]
[1771696827773,0.07400953,68485.0,68477.0,0.07301715]
[1771696827979,0.07400953,68485.0,68477.0,0.07323715]
[1771696828179,0.07300953,68485.0,68477.0,0.07323715]
[1771696828377,0.07321022,68484.0,68477.0,0.07323715]
[1771696832000,0.07421022,68484.0,68477.0,0.07323715]
[1771696832408,0.07321022,68484.0,68477.0,0.07323715]
[1771696832594,0.07421022,68484.0,68477.0,0.07323715]
[1771696832787,0.07321022,68484.0,68477.0,0.07323715]
[1771696832964,0.07301089,68483.0,68477.0,0.00022]
[1771696833164,0.07301249,68482.0,68477.0,0.00022]
[1771696834971,0.07277439,68482.0,68477.0,0.00022]
[1771696835472,0.07301295,68481.0,68473.0,0.21740417]
[1771696835677,0.07301759,68477.0,68472.0,0.16401352]
[1771696835854,0.07301759,68477.0,68470.0,0.00038]
[1771696836247,0.07301759,68477.0,68470.0,0.07340455]
[1771696837097,0.07301675,68478.0,68471.0,0.07302309]
[1771696837322,0.07301548,68479.0,68471.0,0.07302309]
[1771696837753,0.07301646,68478.0,68471.0,0.07302309]
[1771696838915,0.07301646,68478.0,68470.0,0.07340455]
[1771696839357,0.07301646,68478.0,68471.0,0.07302341]
[1771696840997,0.07301536,68479.0,68471.0,0.07302341]
[1771696841334,0.07301536,68479.0,68471.0,0.07324341]
[1771696841545,0.07301622,68478.0,68471.0,0.07324341]
[1771696845399,0.07301545,68479.0,68471.0,0.07324341]
[1771696845700,0.07301508,68479.0,68472.0,0.07302225]
[1771696850568,0.07321508,68479.0,68472.0,0.07302225]
[1771696851026,0.0002,68479.0,68472.0,0.07302225]
[1771696851456,0.0002,68479.0,68473.0,0.07302127]
[1771696854659,0.0002,68479.0,68474.0,0.07301952]
[1771696855644,0.0234928,68478.0,68474.0,0.07301952]
[1771696857635,0.0236928,68478.0,68474.0,0.07301952]
[1771696861321,0.0234928,68489.0,68472.0,0.02338609]
[1771696861573,0.000126,68493.0,68472.0,0.02338609]
[1771696861574,0.07300762,68486.0,68479.0,0.02276787]
[1771696862140,0.07300887,68485.0,68479.0,0.02276787]
[1771696862825,0.07300887,68485.0,68478.0,0.0730161]
[1771696864660,0.0002,68479.0,68478.0,0.0730161]
[1771696865541,0.0002,68479.0,68475.0,0.07301865]
[1771696865942,0.0002,68479.0,68476.0,0.07301731]
[1771696872354,0.0002,68479.0,68476.0,0.07323731]
[1771696872490,0.0002,68479.0,68477.0,0.07301706]
[1771696873657,0.0002,68479.0,68477.0,0.07401706]
[1771696880416,0.0002,68479.0,68477.0,0.07301706]
[1771696881759,0.0002,68479.0,68477.0,0.07401706]
[1771696883193,0.23182435,68498.0,68489.0,0.07300442]
[1771696883399,0.07299986,68494.0,68482.0,0.07301188]
[1771696883602,0.07299604,68497.0,68487.0,0.0730064]
[1771696883823,0.30481924,68498.0,68489.0,0.07300442]
[1771696883824,0.00038865,68490.0,68489.0,0.07300442]
[1771696884999,0.23182435,68498.0,68491.0,0.07300221]
[1771696888555,0.23182435,68498.0,68492.0,0.07300122]
[1771696889274,0.09686103,68499.0,68492.0,0.07300122]
[1771696890212,0.000326,68493.0,68492.0,0.07300122]
[1771696895155,0.0001761,68503.0,68495.0,0.0729974]
[1771696895381,0.07316589,68503.0,68496.0,0.07299692]
[1771696895832,0.07299087,68502.0,68495.0,0.0729974]
[1771696896059,0.07316666,68503.0,68490.0,0.07316262]
[1771696896299,0.07299398,68499.0,68490.0,0.07316262]
[1771696896506,0.07299398,68499.0,68492.0,0.07300114]
[1771696897166,0.0002,68493.0,68492.0,0.07300114]
[1771696900270,0.0002,68493.0,68490.0,0.07316262]
[1771696901363,0.0002,68493.0,68492.0,0.07300114]
[1771696909405,0.0002,68493.0,68473.0,0.22061474]
[1771696909555,0.02330175,68492.0,68477.0,0.02425285]
[1771696909955,0.02330175,68492.0,68488.0,0.07300548]
[1771696911215,0.00031655,68493.0,68488.0,0.07300548]
[1771696913803,0.0236183,68493.0,68488.0,0.07300548]
[1771696915118,0.02330175,68499.0,68485.0,0.00022]
[1771696915323,0.0729961,68497.0,68490.0,0.07300269]
[1771696915498,0.09629785,68497.0,68490.0,0.07300269]
[1771696915903,0.00016,68500.0,68493.0,0.07299937]
[1771696916292,0.001,68499.0,68493.0,0.07299937]
[1771696916967,0.00016,68500.0,68493.0,0.07299937]
[1771696917150,0.07315339,68500.0,68493.0,0.07299937]
[1771696917652,0.001,68499.0,68493.0,0.07299937]
[1771696917807,0.07315339,68500.0,68493.0,0.07299937]
[1771696919401,0.07299386,68499.0,68491.0,0.07300184]
[1771696919528,0.02330175,68498.0,68491.0,0.07300167]
[1771696919857,0.09629739,68498.0,68490.0,0.07300309]
[1771696920034,0.09629739,68498.0,68491.0,0.07300195]
[1771696921080,0.07299764,68496.0,68488.0,0.0730048]
[1771696921753,0.07299764,68496.0,68489.0,0.07300391]
[1771696922753,0.07299589,68497.0,68489.0,0.07300391]
[1771696926418,0.07319589,68497.0,68489.0,0.07300391]
[1771696928491,0.07319589,68497.0,68488.0,0.0732248]
[1771696928707,0.07319589,68497.0,68490.0,0.0730033]
[1771696933301,0.07319589,68497.0,68489.0,0.07300358]
[1771696934084,0.07319589,68497.0,68490.0,0.07300324]
[1771696936006,0.0002,68497.0,68488.0,0.00022]
[1771696936178,0.0002,68497.0,68491.0,0.07300129]
[1771696939919,0.0002,68497.0,68492.0,0.07300053]
[1771696940101,0.0002,68497.0,68491.0,0.07300129]
[1771696946089,0.0002,68497.0,68489.0,0.00022]
[1771696946282,0.0002,68497.0,68485.0,0.00033655]
[1771696946453,0.23085184,68491.0,68482.0,0.07301106]
[1771696946662,0.09634306,68489.0,68482.0,0.07301106]
[1771696949356,0.0730059,68488.0,68481.0,0.0732327]
[1771696949556,0.09634306,68489.0,68481.0,0.0732327]
[1771696950148,0.09634306,68489.0,68482.0,0.00022]
[1771696951303,0.09634306,68489.0,68482.0,0.07323159]
[1771696957491,0.07300617,68488.0,68482.0,0.00022]
[1771696958043,0.02333859,68489.0,68482.0,0.00022]
[1771696958524,0.07300854,68486.0,68482.0,0.00022]
[1771696958665,0.07300691,68487.0,68482.0,0.00022]
[1771696958868,0.07300583,68488.0,68482.0,0.00022]
[1771696960281,0.09634337,68489.0,68482.0,0.00022]
[1771696962190,0.07300549,68488.0,68482.0,0.00022]
[1771696963372,0.07300482,68489.0,68482.0,0.00022]
[1771696964269,0.07300557,68488.0,68482.0,0.00022]
[1771696964773,0.07300482,68489.0,68482.0,0.07323183]
[1771696964774,0.07300464,68489.0,68482.0,0.07323183]
[1771696966153,0.02350147,68491.0,68484.0,0.07300909]
[1771696967228,0.00011646,68491.0,68484.0,0.07300909]
[1771696967644,0.07299981,68494.0,68484.0,0.07300909]
[1771696967935,0.07300127,68492.0,68485.0,0.07300838]
[1771696968136,0.07300127,68492.0,68484.0,0.07292909]
[1771696968277,0.07300127,68492.0,68482.0,0.09687593]
[1771696968278,0.07300372,68490.0,68482.0,0.09687593]
[1771696968481,0.07300372,68490.0,68482.0,0.07323135]
[1771696970648,0.07400372,68490.0,68483.0,0.07301079]
[1771696970877,0.07300372,68490.0,68483.0,0.07301079]
[1771696971211,0.07400372,68490.0,68483.0,0.07301079]
[1771696971409,0.07300372,68490.0,68483.0,0.07301079]
[1771696971606,0.07300372,68490.0,68482.0,0.07323135]
[1771696971802,0.0002,68491.0,68482.0,0.00022]
[1771696972006,0.21637808,68489.0,68480.0,0.00016]
[1771696972232,0.02338501,68488.0,68480.0,0.00016]
[1771696972439,0.07300741,68487.0,68480.0,0.00016]
[1771696974309,0.0002,68491.0,68480.0,0.00016]
[1771696974539,0.0002,68491.0,68484.0,0.07300938]
[1771696976704,0.0002,68489.0,68484.0,0.07300938]
[1771696978226,0.07320461,68489.0,68482.0,0.07301118]
[1771696978438,0.0002,68489.0,68482.0,0.07301118]
[1771696979594,0.0002,68489.0,68484.0,0.001]
[1771696979798,0.0002,68489.0,68482.0,0.07301118]
[1771696979985,0.0012,68489.0,68482.0,0.07301118]
[1771696980347,0.0002,68489.0,68482.0,0.07301118]
[1771696981097,0.0002,68489.0,68483.0,0.07301081]
[1771696982575,0.00012,68489.0,68483.0,0.07301081]
[1771696983914,0.00012,68489.0,68483.0,0.07401081]
[1771696985455,0.00012,68489.0,68483.0,0.07301081]
[1771696986058,0.07300728,68487.0,68481.0,0.00022]
[1771696986967,0.07300728,68487.0,68483.0,0.001]
[1771696987185,0.07300953,68485.0,68478.0,0.00022]
[1771696987384,0.02338501,68484.0,68476.0,0.00022]
[1771696987778,0.07301466,68480.0,68474.0,0.00022]
[1771696987976,0.09782458,68480.0,68474.0,0.00022]
[1771696988180,0.07301514,68479.0,68474.0,0.00022]
[1771696988611,0.09782458,68480.0,68474.0,0.00022]
[1771696988991,0.073077,68480.0,68474.0,0.00022]
[1771696989199,0.07301509,68479.0,68474.0,0.00022]
[1771696990749,0.07301509,68479.0,68471.0,0.0003452]
[1771696991043,0.07301509,68479.0,68471.0,0.0002652]
[1771696991743,0.07301734,68477.0,68471.0,0.0002652]
[1771696992302,0.07301638,68478.0,68471.0,0.0002652]
[1771696995191,0.07301638,68478.0,68471.0,0.0732888]
[1771696997972,0.07301526,68479.0,68472.0,0.07302251]
[1771696998201,6.234e-05,68480.0,68472.0,0.07302254]
[1771697000415,6.234e-05,68480.0,68474.0,0.0730195]
[1771697001250,0.00106234,68480.0,68474.0,0.0730195]
[1771697001570,6.234e-05,68480.0,68474.0,0.0730195]
[1771697002299,0.07307693,68480.0,68473.0,0.07301949]
[1771697002540,0.07307693,68480.0,68472.0,0.07302223]
[1771697003076,6.234e-05,68480.0,68474.0,0.07302012]
[1771697003285,6.234e-05,68480.0,68473.0,0.07302072]
[1771697004293,0.0730152,68479.0,68472.0,0.07302223]
[1771697004917,0.0730152,68479.0,68472.0,0.07324223]
[1771697005836,0.0729352,68479.0,68472.0,0.07324223]
[1771697006999,0.00026234,68480.0,68472.0,0.00022]
[1771697007344,0.07301214,68482.0,68475.0,0.07301907]
[1771697007581,0.07305749,68482.0,68475.0,0.07301907]
[1771697012043,0.07301317,68481.0,68474.0,0.0730204]
[1771697014485,0.00024535,68482.0,68472.0,0.00022]
[1771697014690,0.07301677,68478.0,68472.0,0.00022]
[1771697015090,0.07294346,68478.0,68472.0,0.00022]
[1771697024640,0.07301633,68478.0,68472.0,0.00022]
[1771697024846,0.07301614,68479.0,68472.0,0.07324241]
[1771697025051,0.07321401,68480.0,68472.0,0.00022]
[1771697025315,0.07301508,68479.0,68472.0,0.07324221]
[1771697026964,0.0002,68480.0,68472.0,0.00022]
[1771697027149,0.07301896,68476.0,68472.0,0.00022]
[1771697033454,0.0002,68479.0,68472.0,0.00022]
[1771697033665,0.0002,68479.0,68475.0,0.07301833]
[1771697034460,0.0002,68479.0,68474.0,0.07301834]
[1771697034665,0.292032,68486.0,68472.0,0.0974249]
[1771697034666,0.11724759,68490.0,68472.0,0.00022]
[1771697034953,0.07300675,68487.0,68480.0,0.02418283]
[1771697035566,0.07300675,68487.0,68480.0,0.09719666]
[1771697036353,0.07300675,68487.0,68480.0,0.02418283]
[1771697036562,0.07300941,68485.0,68478.0,0.07301408]
[1771697036907,0.07301011,68484.0,68476.0,0.02418283]
[1771697037112,0.07301482,68480.0,68472.0,0.00060865]
[1771697037287,0.0002,68479.0,68472.0,0.00060865]
[1771697038379,0.0012,68479.0,68472.0,0.00060865]
[1771697038800,0.07321615,68479.0,68472.0,0.00060865]
[1771697039002,0.06730801,68475.0,68469.0,0.00022]
[1771697039206,0.06159596,68475.0,68469.0,0.00026535]
[1771697039803,0.06159596,68475.0,68468.0,0.00022]
[1771697040004,0.06159596,68475.0,68468.0,0.00028234]
[1771697040254,0.06159596,68475.0,68468.0,0.07330906]
[1771697040449,0.07302035,68476.0,68468.0,0.07330906]
[1771697041648,0.0002,68479.0,68460.0,0.17552]
[1771697041649,0.07302874,68467.0,68460.0,0.17552]
[1771697041848,0.02406819,68464.0,68456.0,0.0730395]
[1771697042047,0.07303356,68462.0,68452.0,0.07304333]
[1771697042400,0.07303485,68461.0,68453.0,0.07304255]
[1771697042958,0.09710062,68463.0,68454.0,0.07304167]
[1771697043361,0.07403322,68462.0,68455.0,0.07304067]
[1771697043569,0.07303322,68462.0,68455.0,0.07304067]
[1771697043964,0.09710062,68463.0,68455.0,0.07304067]
[1771697044361,0.09710062,68463.0,68456.0,0.00022]
[1771697046934,0.07303403,68462.0,68456.0,0.00022]
[1771697047137,0.0730348,68461.0,68456.0,0.00022]
[1771697048933,0.00010211,68464.0,68457.0,0.07303843]
[1771697050951,0.00010211,68464.0,68457.0,0.09624387]
[1771697056603,2.211e-05,68464.0,68457.0,0.09624387]
[1771697056820,2.211e-05,68464.0,68457.0,0.07325843]
[1771697057001,0.07305319,68464.0,68457.0,0.07325843]
[1771697058642,0.07325319,68464.0,68457.0,0.07325843]
[1771697060799,0.00022211,68464.0,68458.0,0.07303748]
[1771697062433,0.07302813,68467.0,68460.0,0.02298544]
[1771697062626,0.07302813,68467.0,68459.0,0.07303558]
[1771697062627,0.07302978,68466.0,68459.0,0.07303558]
[1771697064259,0.02512377,68470.0,68457.0,0.00022]
[1771697064466,0.00016,68470.0,68464.0,0.07303105]
[1771697065236,0.00036,68470.0,68464.0,0.07303105]
[1771697069505,0.07338469,68470.0,68463.0,0.07303193]
[1771697069716,0.07338469,68470.0,68462.0,0.07303254]
[1771697073301,0.07338469,68470.0,68463.0,0.07303189]
[1771697075283,0.0001252,68474.0,68461.0,0.02298544]
[1771697075483,0.0001252,68495.0,68460.0,0.16404633]
[1771697075484,0.14619775,68479.0,68471.0,0.09600844]
[1771697075738,0.0002,68479.0,68471.0,0.09600844]
[1771697076549,0.0732162,68478.0,68471.0,0.09600844]
[1771697076964,0.0002,68478.0,68471.0,0.02298544]
[1771697077573,0.07301791,68477.0,68471.0,0.02298544]
[1771697080916,0.07321632,68478.0,68471.0,0.09600894]
[1771697081078,0.07321632,68478.0,68472.0,0.07302188]
[1771697081079,0.0002,68478.0,68472.0,0.07302188]
[1771697081280,0.00016,68480.0,68475.0,0.09571605]
[1771697081929,0.00016,68480.0,68475.0,0.07301848]
[1771697083209,0.08859674,68483.0,68478.0,0.07301408]
[1771697083428,0.07300852,68486.0,68479.0,0.02269757]
[1771697083837,0.07300894,68485.0,68479.0,0.02269757]
[1771697084334,0.07339753,68485.0,68479.0,0.02269757]
[1771697084780,0.0002,68483.0,68479.0,0.02269757]
[1771697085342,0.0006755,68483.0,68479.0,0.02269757]
[1771697086888,0.0006755,68483.0,68476.0,0.07301785]
[1771697087653,0.07368709,68483.0,68475.0,0.07301902]
[1771697091383,0.07368709,68483.0,68476.0,0.07301825]
[1771697091639,0.0006755,68483.0,68477.0,0.07301684]
[1771697094793,0.02438135,68479.0,68460.0,0.16420633]
[1771697094995,0.07302041,68474.0,68466.0,0.07302814]
[1771697095350,0.07335841,68474.0,68466.0,0.07302814]
[1771697095755,0.07302838,68467.0,68460.0,0.00016]
[1771697096329,0.07322888,68467.0,68460.0,0.00016]
[1771697098295,0.07302921,68466.0,68460.0,0.00016]
[1771697098679,0.07302921,68466.0,68461.0,0.00022]
[1771697099482,0.07322971,68466.0,68461.0,0.00022]